fUSD/lending_fUSD_20240719
["ID","MTS","AMOUNT","RATE_DAILY","PERIOD"]
[332669909,1721415043006,-1318.12,0.0003452,14]
[332669911,1721415043016,-500.0,0.0003452,14]
[332669913,1721415043025,-500.0,0.0003452,14]
[332669915,1721415043035,-500.0,0.0003452,14]
[332669918,1721415043045,-500.0,0.0003452,14]
[332669920,1721415043055,-827.59,0.0003452,14]
[332669921,1721415043064,-500.0,0.0003452,14]
[332669924,1721415043073,-1440.81,0.0003452,14]
[332669925,1721415043083,-564.69,0.0003452,14]
[332669927,1721415043092,-504.92,0.0003452,14]
[332669929,1721415043102,-500.0,0.0003452,14]
[332669931,1721415043112,-500.0,0.0003452,14]
[332669933,1721415043122,-500.0,0.0003452,14]
[332669936,1721415043135,-500.0,0.0003452,14]
[332669938,1721415043144,-500.0,0.0003452,14]
[332669940,1721415043153,-500.0,0.0003452,14]
[332669942,1721415043163,-500.0,0.0003452,14]
[332669944,1721415043172,-859.94,0.0003452,14]
[332669946,1721415043181,-2183.35,0.0003452,14]
[332669948,1721415043191,-620.1,0.0003452,14]
[332669950,1721415043201,-500.0,0.0003452,14]
[332669951,1721415043210,-1041.05,0.0003452,14]
[332669954,1721415043223,-559.43,0.0003452,14]
[332669956,1721415043233,-500.0,0.0003452,14]
[332669959,1721415043242,-500.0,0.0003452,14]
[332669961,1721415043255,-500.0,0.0003452,14]
[332669963,1721415043265,-500.0,0.0003452,14]
[332669965,1721415043275,-2223.07,0.0003452,14]
[332669967,1721415043284,-621.5,0.0003452,14]
[332669969,1721415043295,-589.79,0.0003452,14]
[332669971,1721415043305,-500.0,0.0003452,14]
[332669973,1721415043314,-500.0,0.0003452,14]
[332669974,1721415043324,-500.0,0.0003452,14]
[332669975,1721415043334,-500.0,0.0003452,14]
[332669976,1721415043344,-989.09,0.0003452,14]
[332669977,1721415043353,-500.0,0.0003452,14]
[332669978,1721415043363,-1727.94,0.0003452,14]
[332669979,1721415043372,-500.0,0.0003452,14]
[332669980,1721415043382,-500.0,0.0003452,14]
[332669981,1721415043392,-500.0,0.0003452,14]
[332669982,1721415043402,-500.0,0.0003452,14]
[332669983,1721415043412,-658.49,0.0003452,14]
[332669984,1721415043421,-721.91,0.0003452,14]
[332669985,1721415043430,-1173.19,0.0003452,14]
[332669986,1721415043440,-500.0,0.0003452,14]
[332669987,1721415043450,-500.0,0.0003452,14]
[332669988,1721415043459,-500.0,0.0003452,14]
[332669989,1721415043469,-510.59,0.0003452,14]
[332669991,1721415043478,-500.0,0.0003452,14]
[332669992,1721415043488,-1105.81,0.0003452,14]
[332669993,1721415043497,-664.05,0.0003452,14]
[332669994,1721415043507,-500.0,0.0003452,14]
[332669996,1721415043517,-500.0,0.0003452,14]
[332669998,1721415043526,-500.0,0.0003452,14]
[332670000,1721415043536,-1144.94,0.0003452,14]
[332670002,1721415043546,-500.0,0.0003452,14]
[332670004,1721415043555,-499.68467093,0.0003452,14]
[332670006,1721415043565,-500.0,0.0003452,14]
[332670008,1721415043576,-500.0,0.0003452,14]
[332670010,1721415043585,-545.97,0.0003452,14]
[332670012,1721415043595,-500.0,0.0003452,14]
[332670014,1721415043605,-500.0,0.0003452,14]
[332670016,1721415043614,-864.74,0.0003452,14]
[332670018,1721415043624,-500.0,0.0003452,14]
[332670020,1721415043634,-598.83,0.0003452,14]
[332670022,1721415043643,-500.0,0.0003452,14]
[332670024,1721415043653,-500.0,0.0003452,14]
[332670026,1721415043663,-787.46,0.0003452,14]
[332670028,1721415043672,-500.0,0.0003452,14]
[332670030,1721415043682,-500.0,0.0003452,14]
[332670032,1721415043696,-222.55043986,0.0003452,14]
[332670034,1721415043706,-500.0,0.0003452,14]
[332670036,1721415043716,-992.53,0.0003452,2]
[332670038,1721415043729,-500.0,0.0003452,14]
[332670040,1721415043739,-1116.61,0.0003452,14]
[332670042,1721415043749,-1245.22,0.0003452,14]
[332670044,1721415043759,-500.0,0.0003452,14]
[332670046,1721415043770,-500.0,0.0003452,14]
[332670048,1721415043780,-677.27,0.0003452,14]
[332670051,1721415043791,-500.0,0.0003452,14]
[332670053,1721415043800,-910.47,0.0003452,14]
[332670055,1721415043810,-500.0,0.0003452,14]
[332670057,1721415043820,-1114.83,0.0003452,14]
[332670059,1721415043830,-1483.69,0.0003452,14]
[332670061,1721415043840,-674.46,0.0003452,14]
[332670063,1721415043850,-1141.48,0.0003452,14]
[332670065,1721415043862,-500.0,0.0003452,14]
[332670067,1721415043872,-1644.65,0.0003452,14]
[332670069,1721415043883,-897.51,0.0003452,14]
[332670071,1721415043893,-500.0,0.0003452,14]
[332670073,1721415043903,-823.12,0.0003452,14]
[332670075,1721415043913,-806.43,0.0003452,14]
[332670077,1721415043923,-500.0,0.0003452,14]
[332670079,1721415043933,-582.24,0.0003452,14]
[332670081,1721415043943,-500.0,0.0003452,14]
[332670083,1721415043953,-500.0,0.0003452,14]
[332670085,1721415043963,-1871.84,0.0003452,14]
[332670087,1721415043973,-500.0,0.0003452,14]
[332670089,1721415043984,-552.53,0.0003452,14]
[332670091,1721415043994,-500.0,0.0003452,14]
[332670093,1721415044004,-500.0,0.0003452,14]
[332670095,1721415044015,-1181.66,0.0003452,14]
[332670097,1721415044025,-500.0,0.0003452,14]
[332670099,1721415044035,-500.0,0.0003452,14]
[332670100,1721415044044,-529.03,0.0003452,14]
[332670102,1721415044059,-708.96,0.0003452,14]
[332670104,1721415044070,-500.0,0.0003452,14]
[332670107,1721415044080,-620.22,0.0003452,14]
[332670110,1721415044090,-500.0,0.0003452,14]
[332670113,1721415044100,-1230.09,0.0003452,14]
[332670115,1721415044110,-887.08,0.0003452,14]
[332670119,1721415044120,-1016.19,0.0003452,14]
[332670122,1721415044131,-500.0,0.0003452,14]
[332670125,1721415044141,-500.0,0.0003452,14]
[332670129,1721415044151,-500.0,0.0003452,14]
[332670132,1721415044160,-500.0,0.0003452,14]
[332670136,1721415044170,-500.0,0.0003452,14]
[332670139,1721415044180,-500.0,0.0003452,14]
[332670141,1721415044190,-500.0,0.0003452,14]
[332670143,1721415044201,-500.0,0.0003452,14]
[332670145,1721415044211,-706.48,0.0003452,14]
[332670147,1721415044221,-974.19,0.0003452,14]
[332670149,1721415044232,-503.93,0.0003452,14]
[332670151,1721415044243,-500.0,0.0003452,14]
[332670153,1721415044254,-500.0,0.0003452,14]
[332670155,1721415044264,-1854.33,0.0003452,14]
[332670157,1721415044274,-524.5281196,0.0003452,14]
[332670159,1721415044286,-1634.16,0.0003452,14]
[332670161,1721415044295,-500.0,0.0003452,14]
[332670163,1721415044305,-733.22,0.0003452,14]
[332670165,1721415044316,-500.0,0.0003452,14]
[332670167,1721415044326,-509.08768002,0.0003452,14]
[332670169,1721415044337,-674.47,0.0003452,14]
[332670171,1721415044347,-500.0,0.0003452,14]
[332670173,1721415044357,-500.0,0.0003452,14]
[332670175,1721415044367,-500.0,0.0003452,14]
[332670177,1721415044377,-254.90798712,0.0003452,14]
[332670179,1721415044387,-1347.8,0.0003452,14]
[332670181,1721415044397,-500.0,0.0003452,14]
[332670183,1721415044407,-500.0,0.0003452,14]
[332670185,1721415044418,-632.68,0.0003452,14]
[332670187,1721415044428,-496.46812319,0.0003452,14]
[332670189,1721415044438,-1168.81,0.0003452,14]
[332670191,1721415044449,-500.0,0.0003452,14]
[332670193,1721415044459,-500.0,0.0003452,14]
[332670195,1721415044469,-1003.57,0.0003452,14]
[332670197,1721415044479,-1076.29,0.0003452,14]
[332670199,1721415044490,-1047.49,0.0003452,14]
[332670201,1721415044500,-500.0,0.0003452,14]
[332670203,1721415044510,-1160.09,0.0003452,14]
[332670205,1721415044519,-500.0,0.0003452,14]
[332670207,1721415044530,-1193.2,0.0003452,14]
[332670209,1721415044540,-570.48,0.0003452,14]
[332670210,1721415044550,-1982.76,0.0003452,14]
[332670212,1721415044560,-500.0,0.0003452,14]
[332670215,1721415044570,-963.11,0.0003452,14]
[332670219,1721415044580,-1590.18,0.0003452,14]
[332670221,1721415044590,-500.0,0.0003452,14]
[332670223,1721415044600,-518.0,0.0003452,14]
[332670225,1721415044611,-654.01,0.0003452,14]
[332670226,1721415044621,-1965.71,0.0003452,14]
[332670228,1721415044631,-517.72,0.0003452,14]
[332670230,1721415044641,-500.0,0.0003452,14]
[332670232,1721415044651,-1305.99,0.0003452,14]
[332670234,1721415044662,-500.0,0.0003452,14]
[332670237,1721415044672,-500.0,0.0003452,14]
[332670239,1721415044682,-500.0,0.0003452,14]
[332670241,1721415044693,-1738.17,0.0003452,14]
[332670243,1721415044703,-2449.88,0.0003452,14]
[332670245,1721415044713,-816.87,0.0003452,14]
[332670247,1721415044723,-720.83,0.0003452,14]
[332670249,1721415044733,-500.0,0.0003452,14]
[332670251,1721415044743,-1405.95,0.0003452,14]
[332670253,1721415044753,-598.73,0.0003452,14]
[332670255,1721415044764,-1697.36,0.0003452,14]
[332670257,1721415044774,-500.0,0.0003452,14]
[332670259,1721415044784,-1838.98,0.0003452,14]
[332670261,1721415044794,-544.69,0.0003452,14]
[332670263,1721415044804,-500.0,0.0003452,14]
[332670265,1721415044814,-974.83,0.0003452,14]
[332670267,1721415044824,-500.0,0.0003452,14]
[332670270,1721415044835,-500.0,0.0003452,14]
[332670272,1721415044845,-500.0,0.0003452,14]
[332670274,1721415044854,-500.0,0.0003452,14]
[332670276,1721415044865,-1004.91,0.0003452,14]
[332670278,1721415044875,-500.0,0.0003452,14]
[332670280,1721415044885,-500.0,0.0003452,14]
[332670282,1721415044895,-500.0,0.0003452,14]
[332670284,1721415044906,-500.0,0.0003452,14]
[332670286,1721415044916,-647.43,0.0003452,14]
[332670288,1721415044926,-941.2,0.0003452,14]
[332670290,1721415044936,-547.32,0.0003452,14]
[332670292,1721415044948,-500.0,0.0003452,14]
[332670294,1721415044957,-500.0,0.0003452,14]
[332670296,1721415044967,-576.2894031,0.0003452,7]
[332670332,1721415045305,-399.43003753,0.00034246,14]
[332670334,1721415045315,-10.8705969,0.0003452,7]
[332670336,1721415045326,-223.86580852,0.0003452,14]
[332670342,1721415045367,-502.60419148,0.0003452,14]
[332670343,1721415045377,-373.51540989,0.0003452,14]
[332670346,1721415045388,-126.48459011,0.0003452,14]
[332670348,1721415045399,-500.0,0.0003452,14]
[332670350,1721415045409,-693.28,0.0003452,14]
[332670352,1721415045419,-874.37,0.0003452,14]
[332670354,1721415045429,-500.0,0.0003452,14]
[332670356,1721415045440,-500.0,0.0003452,14]
[332670358,1721415045451,-500.0,0.0003452,14]
[332670360,1721415045460,-1084.02,0.0003452,14]
[332670362,1721415045471,-782.89,0.0003452,14]
[332670364,1721415045483,-475.27589553,0.0003452,14]
[332670366,1721415045493,-192.56965834,0.0003452,14]
[332670401,1721415047227,-264.3272093,0.000168,2]
[332670402,1721415047236,-368.62340301,0.00034136,15]
[332670403,1721415047249,-307.43034166,0.0003452,14]
[332670404,1721415047259,-500.0,0.0003452,14]
[332670405,1721415047269,-305.96,0.0003452,14]
[332670406,1721415047279,-500.0,0.0003452,14]
[332670407,1721415047291,-850.67,0.0003452,14]
[332670408,1721415047300,-2049.99,0.0003452,14]
[332670409,1721415047311,-500.0,0.0003452,14]
[332670410,1721415047321,-496.01064273,0.0003452,14]
[332670411,1721415047332,-3.98935727,0.0003452,14]
[332670412,1721415047342,-246.40483244,0.0003452,14]
[332670413,1721415047353,-253.59516756,0.0003452,14]
[332670414,1721415047362,-500.0,0.0003452,14]
[332670415,1721415047371,-378.10483245,0.0003452,14]
[332670416,1721415047474,-121.89516755,0.0003452,14]
[332670417,1721415047483,-545.13,0.0003452,14]
[332670418,1721415047493,-500.0,0.0003452,14]
[332670419,1721415047502,-982.14,0.0003452,14]
[332670420,1721415047512,-500.0,0.0003452,14]
[332670421,1721415047521,-500.0,0.0003452,14]
[332670422,1721415047530,-540.7,0.0003452,14]
[332670423,1721415047540,-500.0,0.0003452,14]
[332670424,1721415047550,-237.95494707,0.0003452,14]
[332670425,1721415047560,-500.0,0.0003452,14]
[332670426,1721415047571,-1590.22,0.0003452,14]
[332670427,1721415047581,-850.38,0.0003452,14]
[332670428,1721415047591,-500.0,0.0003452,14]
[332670429,1721415047600,-1867.44,0.0003452,14]
[332670430,1721415047610,-500.0,0.0003452,14]
[332670431,1721415047620,-500.0,0.0003452,14]
[332670432,1721415047633,-1351.36,0.0003452,14]
[332670433,1721415047644,-500.0,0.0003452,14]
[332670434,1721415047655,-500.0,0.0003452,14]
[332670435,1721415047667,-500.0,0.0003452,14]
[332670436,1721415047676,-1160.91,0.0003452,14]
[332670437,1721415047686,-500.0,0.0003452,14]
[332670438,1721415047697,-500.0,0.0003452,14]
[332670439,1721415047707,-500.0,0.0003452,14]
[332670440,1721415047717,-927.66,0.0003452,14]
[332670441,1721415047727,-2413.48,0.0003452,14]
[332670442,1721415047737,-1701.7,0.0003452,14]
[332670443,1721415047747,-500.0,0.0003452,14]
[332670444,1721415047757,-500.0,0.0003452,14]
[332670445,1721415047768,-7127.8,0.0003452,14]
[332670446,1721415047778,-582.77898,0.0003452,2]
[332670447,1721415047787,-738.95090538,0.0003452,14]
[332670448,1721415047801,-64.22909462,0.0003452,14]
[332670449,1721415047811,-500.0,0.0003452,14]
[332670450,1721415047821,-618.25753966,0.0003452,14]
[332670451,1721415048197,-500.0,0.00034246,2]
[332670452,1721415048207,-56.67246034,0.0003452,14]
[332670453,1721415048217,-2019.96,0.0003452,14]
[332670454,1721415048227,-910.19,0.0003452,14]
[332670455,1721415048237,-1128.67,0.0003452,14]
[332670456,1721415048249,-500.0,0.0003452,14]
[332670457,1721415048259,-9665.01,0.0003452,14]
[332670458,1721415048269,-500.0,0.0003452,14]
[332670459,1721415048279,-1532.69,0.0003452,14]
[332670460,1721415048290,-892.18,0.0003452,14]
[332670461,1721415048300,-500.0,0.0003452,14]
[332670462,1721415048310,-877.02,0.0003452,14]
[332670463,1721415048320,-500.0,0.0003452,14]
[332670464,1721415048331,-1069.57,0.0003452,14]
[332670465,1721415048341,-500.0,0.0003452,14]
[332670466,1721415048351,-500.0,0.0003452,14]
[332670467,1721415048360,-44.20406592,0.0003452,14]
[332670468,1721415048404,-1226.74570504,0.0003452,14]
[332670470,1721415050149,-264.32720928,0.0001685,2]
[332670471,1721415050160,-323.60245172,0.00034146,2]
[332670472,1721415050171,-368.623403,0.000344,15]
[332670473,1721415050183,-1641.65022904,0.0003452,14]
[332670474,1721415050194,-500.0,0.0003452,14]
[332670475,1721415050205,-1384.76,0.0003452,14]
[332670476,1721415050216,-500.0,0.0003452,14]
[332670477,1721415050227,-560.91,0.0003452,14]
[332670478,1721415050238,-989.37,0.0003452,14]
[332670479,1721415050251,-581.67021041,0.0003452,14]
[332670480,1721415050264,-374.32978959,0.0003452,14]
[332670481,1721415050275,-495.62391946,0.0003452,14]
[332670482,1721415050288,-160.18608054,0.0003452,14]
[332670483,1721415050299,-467.40805824,0.0003452,14]
[332670484,1721415050313,-32.59194176,0.0003452,14]
[332670485,1721415050325,-1391.75,0.0003452,14]
[332670486,1721415050335,-500.0,0.0003452,14]
[332670487,1721415050346,-2802.39,0.0003452,14]
[332670488,1721415050357,-1753.47,0.0003452,14]
[332670489,1721415050367,-724.89,0.0003452,14]
[332670490,1721415050378,-684.91,0.0003452,14]
[332670491,1721415050389,-500.0,0.0003452,14]
[332670493,1721415050400,-500.0,0.0003452,14]
[332670495,1721415050411,-1484.59,0.0003452,14]
[332670497,1721415050422,-727.05,0.0003452,14]
[332670499,1721415050433,-1461.64,0.0003452,14]
[332670501,1721415050443,-2699.38,0.0003452,14]
[332670503,1721415050455,-500.0,0.0003452,14]
[332670505,1721415050466,-5182.2,0.0003452,14]
[332670507,1721415050476,-2709.67,0.0003452,14]
[332670509,1721415050488,-500.0,0.0003452,14]
[332670511,1721415050498,-898.89,0.0003452,14]
[332670513,1721415050509,-500.0,0.0003452,14]
[332670515,1721415050520,-500.0,0.0003452,14]
[332670517,1721415050530,-1044.68,0.0003452,14]
[332670519,1721415050541,-612.11,0.0003452,14]
[332670521,1721415050551,-4168.99,0.0003452,14]
[332670523,1721415050562,-5242.34,0.0003452,14]
[332670525,1721415050572,-500.0,0.0003452,14]
[332670527,1721415050583,-6738.94,0.0003452,14]
[332670529,1721415050593,-500.0,0.0003452,14]
[332670531,1721415050604,-8272.24,0.0003452,14]
[332670533,1721415050614,-331.10805824,0.0003452,14]
[332670551,1721415050799,-168.89194176,0.0003452,14]
[332670553,1721415050811,-12158.0,0.0003452,14]
[332670555,1721415050822,-500.0,0.0003452,14]
[332670557,1721415050833,-596.33,0.0003452,14]
[332670559,1721415050845,-500.0,0.0003452,14]
[332670561,1721415050856,-640.6,0.0003452,14]
[332670563,1721415050867,-500.0,0.0003452,14]
[332670565,1721415050878,-710.67,0.0003452,14]
[332670567,1721415050889,-500.0,0.0003452,14]
[332670569,1721415050900,-3002.66,0.0003452,14]
[332670571,1721415050911,-1200.31,0.0003452,14]
[332670574,1721415050922,-1923.43,0.0003452,14]
[332670576,1721415050932,-500.0,0.0003452,14]
[332670578,1721415050943,-556.93,0.0003452,14]
[332670580,1721415050955,-1144.24,0.0003452,14]
[332670582,1721415050966,-500.0,0.0003452,14]
[332670584,1721415050977,-500.0,0.0003452,14]
[332670586,1721415050988,-500.0,0.0003452,14]
[332670588,1721415051000,-4548.52,0.0003452,14]
[332670590,1721415051011,-2644.86,0.0003452,14]
[332670592,1721415051022,-3238.69,0.0003452,14]
[332670595,1721415051032,-500.0,0.0003452,14]
[332670597,1721415051043,-1430.76,0.0003452,14]
[332670599,1721415051054,-500.0,0.0003452,14]
[332670601,1721415051064,-500.0,0.0003452,14]
[332670603,1721415051075,-500.0,0.0003452,14]
[332670605,1721415051086,-510.64,0.0003452,14]
[332670607,1721415051097,-2289.3,0.0003452,14]
[332670609,1721415051107,-189.36305317,0.0003452,14]
[332670611,1721415051121,-753.44694683,0.0003452,14]
[332670614,1721415051133,-598.62,0.0003452,14]
[332670616,1721415051144,-4985.93305318,0.0003452,14]
[332670618,1721415051157,-220.69694682,0.0003452,14]
[332670620,1721415051169,-500.0,0.0003452,14]
[332670622,1721415051179,-417.80746907,0.0003452,14]
[332670625,1721415051193,-82.19253093,0.0003452,14]
[332670627,1721415051204,-396.47863027,0.0003452,14]
[332670640,1721415051324,-103.52136973,0.0003452,14]
[332670642,1721415051335,-1323.56,0.0003452,14]
[332670644,1721415051346,-140.29892548,0.0003452,14]
[332670646,1721415051358,-379.07107452,0.0003452,14]
[332670648,1721415051369,-421.82940539,0.0003452,14]
[332670650,1721415051382,-778.84,0.0003452,14]
[332670655,1721415051414,-3972.14059461,0.0003452,14]
[332670657,1721415051425,-875.5,0.0003452,14]
[332670659,1721415051436,-1044.1,0.0003452,14]
[332670661,1721415051446,-596.83,0.0003452,14]
[332670662,1721415051457,-3206.52596906,0.0003452,14]
[332670663,1721415051469,-5093.37403094,0.0003452,14]
[332670664,1721415051480,-500.0,0.0003452,14]
[332670665,1721415051491,-500.0,0.0003452,14]
[332670666,1721415051501,-3098.13,0.0003452,14]
[332670667,1721415051512,-5270.56,0.0003452,14]
[332670668,1721415051522,-3184.49,0.0003452,14]
[332670669,1721415051532,-698.83,0.0003452,14]
[332670670,1721415051543,-6788.75,0.0003452,14]
[332670671,1721415051553,-500.0,0.0003452,14]
[332670672,1721415051564,-799.52,0.0003452,14]
[332670673,1721415051574,-7127.06,0.0003452,14]
[332670674,1721415051585,-532.82,0.0003452,14]
[332670675,1721415051595,-500.0,0.0003452,14]
[332670676,1721415051606,-822.64,0.0003452,14]
[332670677,1721415051617,-500.0,0.0003452,14]
[332670678,1721415051628,-500.0,0.0003452,14]
[332670679,1721415051639,-1188.79,0.0003452,14]
[332670680,1721415051650,-1180.0,0.0003452,14]
[332670682,1721415051661,-500.0,0.0003452,14]
[332670684,1721415051672,-7557.47,0.0003452,14]
[332670686,1721415051682,-2207.54,0.0003452,14]
[332670688,1721415051693,-2708.64,0.0003452,14]
[332670690,1721415051704,-500.0,0.0003452,14]
[332670692,1721415051716,-3265.12,0.0003452,14]
[332670694,1721415051727,-500.0,0.0003452,14]
[332670696,1721415051738,-2280.42,0.0003452,14]
[332670698,1721415051749,-3957.79,0.0003452,14]
[332670700,1721415051761,-810.62,0.0003452,14]
[332670702,1721415051772,-3214.88,0.0003452,14]
[332670704,1721415051783,-500.0,0.0003452,14]
[332670706,1721415051794,-800.2,0.0003452,14]
[332670708,1721415051805,-1653.8,0.0003452,14]
[332670710,1721415051815,-463.79870159,0.0003452,14]
[332670712,1721415051826,-3786.76,0.0003452,14]
[332670714,1721415051838,-1323.71,0.0003452,14]
[332670716,1721415051848,-500.0,0.0003452,14]
[332670718,1721415051859,-500.0,0.0003452,14]
[332670720,1721415051870,-500.0,0.0003452,14]
[332670722,1721415051881,-2407.04,0.0003452,14]
[332670724,1721415051892,-500.0,0.0003452,14]
[332670726,1721415051903,-1324.51,0.0003452,14]
[332670729,1721415051915,-537.19,0.0003452,14]
[332670731,1721415051926,-500.0,0.0003452,14]
[332670733,1721415051937,-500.0,0.0003452,14]
[332670735,1721415051946,-500.0,0.0003452,14]
[332670737,1721415051956,-3263.43,0.0003452,14]
[332670739,1721415051967,-3153.53,0.0003452,14]
[332670741,1721415051976,-1085.88,0.0003452,14]
[332670743,1721415051986,-2999.95,0.0003452,14]
[332670744,1721415051995,-500.0,0.0003452,14]
[332670746,1721415052005,-984.93,0.0003452,14]
[332670748,1721415052015,-579.31,0.0003452,14]
[332670750,1721415052024,-3249.0,0.0003452,14]
[332670752,1721415052033,-3168.23,0.0003452,14]
[332670754,1721415052042,-500.0,0.0003452,14]
[332670756,1721415052052,-5915.37,0.0003452,14]
[332670758,1721415052061,-849.48,0.0003452,14]
[332670760,1721415052070,-500.0,0.0003452,14]
[332670762,1721415052079,-1025.73,0.0003452,14]
[332670764,1721415052088,-1130.17,0.0003452,14]
[332670766,1721415052097,-500.0,0.0003452,14]
[332670768,1721415052106,-865.5,0.0003452,14]
[332670770,1721415052115,-2641.0,0.0003452,14]
[332670772,1721415052126,-500.0,0.0003452,14]
[332670774,1721415052135,-6787.81,0.0003452,14]
[332670776,1721415052144,-3522.68,0.0003452,14]
[332670778,1721415052154,-500.0,0.0003452,14]
[332670779,1721415052163,-500.0,0.0003452,14]
[332670781,1721415052173,-952.84,0.0003452,14]
[332670783,1721415052182,-1063.67,0.0003452,14]
[332670785,1721415052191,-917.53,0.0003452,14]
[332670787,1721415052202,-1138.5,0.0003452,14]
[332670789,1721415052211,-1910.3,0.0003452,14]
[332670791,1721415052220,-6106.58,0.0003452,14]
[332670793,1721415052229,-2549.13,0.0003452,14]
[332670795,1721415052238,-4233.24,0.0003452,14]
[332670797,1721415052249,-4125.3,0.0003452,14]
[332670799,1721415052261,-2688.09,0.0003452,14]
[332670801,1721415052270,-500.0,0.0003452,14]
[332670803,1721415052280,-500.0,0.0003452,14]
[332670805,1721415052290,-1381.21,0.0003452,14]
[332670807,1721415052300,-500.0,0.0003452,14]
[332670809,1721415052309,-500.0,0.0003452,14]
[332670811,1721415052319,-500.0,0.0003452,14]
[332670813,1721415052329,-1490.76,0.0003452,14]
[332670815,1721415052339,-1563.18,0.0003452,14]
[332670817,1721415052349,-500.0,0.0003452,14]
[332670819,1721415052358,-753.46,0.0003452,14]
[332670820,1721415052367,-500.0,0.0003452,14]
[332670821,1721415052377,-1571.16,0.0003452,14]
[332670822,1721415052387,-562.94,0.0003452,14]
[332670824,1721415052397,-500.0,0.0003452,14]
[332670826,1721415052406,-553.42,0.0003452,14]
[332670828,1721415052416,-640.84,0.0003452,14]
[332670830,1721415052425,-500.0,0.0003452,14]
[332670831,1721415052435,-500.0,0.0003452,14]
[332670833,1721415052444,-2353.83,0.0003452,14]
[332670887,1721415052962,-500.0,0.0003452,14]
[332670891,1721415052991,-500.0,0.0003452,14]
[332670894,1721415053010,-500.0,0.0003452,14]
[332670897,1721415053029,-3069.45,0.0003452,14]
[332670899,1721415053048,-500.0,0.0003452,14]
[332670902,1721415053058,-555.55,0.0003452,14]
[332670904,1721415053068,-500.0,0.0003452,14]
[332670906,1721415053078,-411.14196797,0.0003452,14]
[332670907,1721415053087,-3715.07,0.0003452,14]
[332670909,1721415053097,-1481.43,0.0003452,14]
[332670911,1721415053107,-503.4947683,0.0003452,14]
[332670914,1721415053117,-6093.43,0.0003452,14]
[332670916,1721415053126,-1947.82002412,0.0003452,14]
[332670918,1721415053140,-187.98997588,0.0003452,14]
[332670920,1721415053150,-4108.61,0.0003452,14]
[332670922,1721415053159,-500.0,0.0003452,14]
[332670924,1721415053168,-709.58600722,0.0003452,14]
[332670973,1721415053663,-80.62399278,0.0003452,14]
[332670975,1721415053674,-500.0,0.0003452,14]
[332670977,1721415053683,-1114.87843006,0.0003452,14]
[332670980,1721415053694,-55.82156994,0.0003452,14]
[332670982,1721415053704,-217.89854603,0.0003452,14]
[332670984,1721415053715,-266.76831252,0.0003452,14]
[332670986,1721415053727,-436.29198205,0.0003452,14]
[332670988,1721415053738,-602.00844115,0.0003452,14]
[332670997,1721415053813,-1563.19271825,0.0003452,14]
[332670999,1721415053823,-193.55988149,0.0003452,14]
[332671403,1721416231680,-150.0,0.00015,2]
[332671405,1721416231691,-200.0,0.00017,2]
[332671407,1721416231702,-250.0,0.00019,2]
[332671408,1721416231716,-300.0,0.00019499,2]
[332671409,1721416231727,-1637.0,0.000195,2]
[332671410,1721416231738,-154.36,0.00021644,2]